[Event "Goteborg Open 2024"]
[Site "Goteborgs Schackcentrum, Vegatan 20, Gothenburg, Sweden"]
[Date "2024.08.03"]
[Round "6.13"]
[White "Thern, Alfred"]
[Black "Johansson, Stefan"]
[Result "1/2-1/2"]
[TimeControl "15 minutes + 5 seconds per move from move one (Round 1 - 4) / 90 minutes + 30 seconds per move from move one (Round 5 - 8)"]
[WhiteFideId "1775227"]
[BlackFideId "1732242"]
[WhiteElo "1729"]
[BlackElo "1933"]

1. e4 {[%clk 01:30:51]} {[%emt 00:00:08]} c5 {[%clk 01:30:43]} {[%emt
00:00:18]} 2. Nf3 {[%clk 01:30:59]} {[%emt 00:00:22]} Nc6 {[%clk 01:31:05]}
{[%emt 00:00:07]} 3. Bb5 {[%clk 01:31:02]} {[%emt 00:00:27]} g6 {[%clk
01:30:51]} {[%emt 00:00:45]} 4. Bxc6 {[%clk 01:30:08]} {[%emt 00:01:24]} dxc6
{[%clk 01:30:37]} {[%emt 00:00:43]} 5. d3 {[%clk 01:29:47]} {[%emt 00:00:52]}
Bg7 {[%clk 01:30:16]} {[%emt 00:00:50]} 6. Nc3 {[%clk 01:28:35]} {[%emt
00:01:43]} Nf6 {[%clk 01:29:09]} {[%emt 00:01:36]} 7. Be3 {[%clk 01:27:59]}
{[%emt 00:01:06]} b6 {[%clk 01:29:10]} {[%emt 00:00:29]} 8. h3 {[%clk
01:28:08]} {[%emt 00:00:22]} O-O {[%clk 01:27:46]} {[%emt 00:01:53]} 9. Qd2
{[%clk 01:26:33]} {[%emt 00:02:05]} Ne8 {[%clk 01:22:18]} {[%emt 00:05:59]} 10.
O-O-O {[%clk 01:26:03]} {[%emt 00:01:01]} Nd6 {[%clk 01:18:29]} {[%emt
00:04:18]} 11. Bh6 {[%clk 01:20:03]} {[%emt 00:06:29]} b5 {[%clk 01:10:24]}
{[%emt 00:08:35]} 12. Bxg7 {[%clk 01:19:46]} {[%emt 00:00:48]} Kxg7 {[%clk
01:10:36]} {[%emt 00:00:17]} 13. e5 {[%clk 01:13:27]} {[%emt 00:06:49]} Nf5
{[%clk 01:07:25]} {[%emt 00:03:41]} 14. Ne4 {[%clk 01:08:30]} {[%emt 00:05:28]}
Qd5 {[%clk 01:06:05]} {[%emt 00:01:48]} 15. Kb1 {[%clk 01:05:32]} {[%emt
00:03:29]} b4 {[%clk 01:00:26]} {[%emt 00:06:10]} 16. g4 {[%clk 00:58:16]}
{[%emt 00:07:46]} Nd4 {[%clk 00:59:38]} {[%emt 00:01:18]} 17. Nxd4 {[%clk
00:57:08]} {[%emt 00:01:37]} cxd4 {[%clk 00:56:46]} {[%emt 00:03:21]} 18. Qxb4
{[%clk 00:53:48]} {[%emt 00:03:52]} Qxe5 {[%clk 00:45:20]} {[%emt 00:11:55]} 19.
f4 {[%clk 00:47:43]} {[%emt 00:06:34]} Rb8 {[%clk 00:40:54]} {[%emt 00:04:55]}
20. Qa3 {[%clk 00:42:35]} {[%emt 00:05:40]} Qb5 {[%clk 00:38:52]} {[%emt
00:02:32]} 21. b3 {[%clk 00:41:39]} {[%emt 00:01:27]} Rb7 {[%clk 00:36:02]}
{[%emt 00:03:21]} 22. Rde1 {[%clk 00:38:33]} {[%emt 00:03:35]} Qb4 {[%clk
00:18:08]} {[%emt 00:18:24]} 23. Qb2 {[%clk 00:38:38]} {[%emt 00:00:25]} Be6
{[%clk 00:15:49]} {[%emt 00:02:49]} 24. a3 {[%clk 00:35:17]} {[%emt 00:03:51]}
Qb6 {[%clk 00:15:04]} {[%emt 00:01:14]} 25. Rhf1 {[%clk 00:33:24]} {[%emt
00:02:23]} Bd5 {[%clk 00:11:14]} {[%emt 00:04:21]} 26. f5 {[%clk 00:31:33]}
{[%emt 00:02:21]} Bxe4 {[%clk 00:08:25]} {[%emt 00:03:19]} 27. Rxe4 {[%clk
00:31:28]} {[%emt 00:00:35]} c5 {[%clk 00:08:21]} {[%emt 00:00:34]} 28. Qc1
{[%clk 00:29:13]} {[%emt 00:02:44]} a5 {[%clk 00:05:41]} {[%emt 00:03:11]} 29.
a4 {[%clk 00:27:14]} {[%emt 00:02:28]} c4 {[%clk 00:02:49]} {[%emt 00:03:22]}
30. dxc4 {[%clk 00:25:38]} {[%emt 00:02:06]} d3 {[%clk 00:03:05]} {[%emt
00:00:14]} 31. Rf3 {[%clk 00:23:39]} {[%emt 00:02:28]} dxc2+ {[%clk 00:03:22]}
{[%emt 00:00:14]} 32. Qxc2 {[%clk 00:23:25]} {[%emt 00:00:45]} Rd8 {[%clk
00:03:09]} {[%emt 00:00:43]} 33. fxg6 {[%clk 00:22:30]} {[%emt 00:01:25]} hxg6
{[%clk 00:02:52]} {[%emt 00:00:46]} 34. Qf2 {[%clk 00:21:04]} {[%emt 00:01:56]}
Qxf2 {[%clk 00:03:07]} {[%emt 00:00:15]} 35. Rxf2 {[%clk 00:21:32]} {[%emt
00:00:03]} Rxb3+ {[%clk 00:03:29]} {[%emt 00:00:08]} 1/2-1/2

[Event "Goteborg Open 2024"]
[Site "Goteborgs Schackcentrum, Vegatan 20, Gothenburg, Sweden"]
[Date "2024.08.03"]
[Round "6.14"]
[White "Torres, Lucas"]
[Black "Bergdahl, Daniel"]
[Result "1-0"]
[TimeControl "15 minutes + 5 seconds per move from move one (Round 1 - 4) / 90 minutes + 30 seconds per move from move one (Round 5 - 8)"]
[WhiteFideId "1769464"]
[BlackFideId "1780921"]
[WhiteElo "1861"]
[BlackElo "1689"]

1. e4 {[%clk 01:30:59]} {[%emt 00:00:01]} c6 {[%clk 01:30:55]} {[%emt
00:00:06]} 2. Nc3 {[%clk 01:31:18]} {[%emt 00:00:11]} d5 {[%clk 01:31:08]}
{[%emt 00:00:17]} 3. Nf3 {[%clk 01:31:38]} {[%emt 00:00:09]} dxe4 {[%clk
01:31:26]} {[%emt 00:00:12]} 4. Nxe4 {[%clk 01:31:59]} {[%emt 00:00:08]} Nf6
{[%clk 01:31:47]} {[%emt 00:00:10]} 5. Qe2 {[%clk 01:30:36]} {[%emt 00:01:53]}
Nxe4 {[%clk 01:30:43]} {[%emt 00:01:34]} 6. Qxe4 {[%clk 01:31:00]} {[%emt
00:00:05]} Be6 {[%clk 01:31:05]} {[%emt 00:00:09]} 7. d3 {[%clk 01:29:58]}
{[%emt 00:01:33]} Nd7 {[%clk 01:31:14]} {[%emt 00:00:20]} 8. Ng5 {[%clk
01:29:32]} {[%emt 00:00:55]} Bd5 {[%clk 01:31:24]} {[%emt 00:00:21]} 9. Qe2
{[%clk 01:29:48]} {[%emt 00:00:14]} h6 {[%clk 01:31:23]} {[%emt 00:00:31]} 10.
Ne4 {[%clk 01:29:35]} {[%emt 00:00:43]} Bxe4 {[%clk 01:31:22]} {[%emt
00:00:32]} 11. dxe4 {[%clk 01:29:40]} {[%emt 00:00:24]} e6 {[%clk 01:30:34]}
{[%emt 00:01:19]} 12. g3 {[%clk 01:29:45]} {[%emt 00:00:24]} Bc5 {[%clk
01:28:40]} {[%emt 00:02:24]} 13. Bg2 {[%clk 01:29:40]} {[%emt 00:00:35]} O-O
{[%clk 01:28:55]} {[%emt 00:00:15]} 14. O-O {[%clk 01:30:01]} {[%emt 00:00:09]}
f6 {[%clk 01:27:35]} {[%emt 00:01:51]} 15. Qg4 {[%clk 01:29:22]} {[%emt
00:01:07]} f5 {[%clk 01:27:03]} {[%emt 00:01:02]} 16. exf5 {[%clk 01:28:29]}
{[%emt 00:01:24]} exf5 {[%clk 01:27:01]} {[%emt 00:00:33]} 17. Qc4+ {[%clk
01:28:28]} {[%emt 00:00:30]} Kh8 {[%clk 01:26:37]} {[%emt 00:00:54]} 18. b4
{[%clk 01:27:50]} {[%emt 00:01:08]} Be7 {[%clk 01:25:03]} {[%emt 00:02:03]} 19.
Bf4 {[%clk 01:26:46]} {[%emt 00:01:34]} Qe8 {[%clk 01:20:27]} {[%emt 00:05:07]}
20. Rfe1 {[%clk 01:25:43]} {[%emt 00:01:33]} Qf7 {[%clk 01:19:33]} {[%emt
00:01:24]} 21. Qxf7 {[%clk 01:23:06]} {[%emt 00:03:07]} Rxf7 {[%clk 01:19:44]}
{[%emt 00:00:19]} 22. a3 {[%clk 01:17:25]} {[%emt 00:06:11]} Bf6 {[%clk
01:18:18]} {[%emt 00:01:55]} 23. Rad1 {[%clk 01:16:18]} {[%emt 00:01:38]} Nb6
{[%clk 01:18:20]} {[%emt 00:00:29]} 24. Bf3 {[%clk 01:11:38]} {[%emt 00:05:09]}
Rff8 {[%clk 01:13:53]} {[%emt 00:04:58]} 25. Be5 {[%clk 01:09:54]} {[%emt
00:02:14]} Bxe5 {[%clk 01:07:49]} {[%emt 00:06:34]} 26. Rxe5 {[%clk 01:09:42]}
{[%emt 00:00:42]} Nc4 {[%clk 01:07:29]} {[%emt 00:00:50]} 27. Re7 {[%clk
01:08:58]} {[%emt 00:01:13]} Nxa3 {[%clk 01:06:54]} {[%emt 00:01:06]} 28. Rdd7
{[%clk 01:07:47]} {[%emt 00:01:38]} Rg8 {[%clk 01:06:02]} {[%emt 00:01:24]} 29.
Rxb7 {[%clk 01:06:55]} {[%emt 00:01:22]} Nxc2 {[%clk 01:04:09]} {[%emt
00:02:23]} 30. Bxc6 {[%clk 01:06:14]} {[%emt 00:01:11]} Rab8 {[%clk 01:02:05]}
{[%emt 00:02:34]} 31. b5 {[%clk 01:00:13]} {[%emt 00:06:31]} Rxb7 {[%clk
01:01:47]} {[%emt 00:00:49]} 32. Rxb7 {[%clk 01:00:24]} {[%emt 00:00:18]} Nd4
{[%clk 01:01:39]} {[%emt 00:00:38]} 33. Rxa7 {[%clk 01:00:04]} {[%emt
00:00:50]} Nxc6 {[%clk 01:00:03]} {[%emt 00:02:05]} 34. bxc6 {[%clk 01:00:32]}
{[%emt 00:00:03]} Rc8 {[%clk 01:00:15]} {[%emt 00:00:18]} 35. c7 {[%clk
01:00:49]} {[%emt 00:00:13]} Kg8 {[%clk 01:00:36]} {[%emt 00:00:08]} 36. f4
{[%clk 01:00:39]} {[%emt 00:00:40]} Kf7 {[%clk 01:00:12]} {[%emt 00:00:55]} 37.
Kf2 {[%clk 01:00:42]} {[%emt 00:00:27]} g5 {[%clk 00:59:38]} {[%emt 00:01:04]}
38. Ke3 {[%clk 01:00:32]} {[%emt 00:00:40]} Kg6 {[%clk 00:59:20]} {[%emt
00:00:48]} 39. Ra6+ {[%clk 01:00:42]} {[%emt 00:00:21]} Kh5 {[%clk 00:59:30]}
{[%emt 00:00:19]} 40. Rc6 {[%clk 00:58:36]} {[%emt 00:02:37]} Kg4 {[%clk
00:59:12]} {[%emt 00:00:46]} 41. Rc4 {[%clk 00:47:40]} {[%emt 00:11:26]} Kh3
{[%clk 00:58:32]} {[%emt 00:01:10]} 42. Rc2 {[%clk 00:43:36]} {[%emt 00:04:35]}
Kg4 {[%clk 00:57:39]} {[%emt 00:01:22]} 43. Rc6 {[%clk 00:40:54]} {[%emt
00:03:13]} gxf4+ {[%clk 00:52:43]} {[%emt 00:05:26]} 44. gxf4 {[%clk 00:41:00]}
{[%emt 00:00:24]} h5 {[%clk 00:52:37]} {[%emt 00:00:35]} 45. Rg6+ {[%clk
00:40:17]} {[%emt 00:01:13]} Kh3 {[%clk 00:51:53]} {[%emt 00:01:13]} 46. Rg7
{[%clk 00:40:39]} {[%emt 00:00:10]} h4 {[%clk 00:50:16]} {[%emt 00:02:06]} 47.
Rd7 {[%clk 00:32:18]} {[%emt 00:08:51]} Kxh2 {[%clk 00:44:23]} {[%emt
00:06:23]} 48. Kf3 {[%clk 00:31:32]} {[%emt 00:01:16]} Kg1 {[%clk 00:42:05]}
{[%emt 00:02:47]} 49. Rd1+ {[%clk 00:31:46]} {[%emt 00:00:17]} Kh2 {[%clk
00:41:35]} {[%emt 00:01:00]} 50. Rc1 {[%clk 00:32:05]} {[%emt 00:00:13]} h3
{[%clk 00:40:41]} {[%emt 00:01:23]} 51. Rc6 {[%clk 00:30:21]} {[%emt 00:02:13]}
Kg1 {[%clk 00:39:17]} {[%emt 00:01:55]} 52. Rc2 {[%clk 00:30:27]} {[%emt
00:00:24]} Kh1 {[%clk 00:38:29]} {[%emt 00:01:17]} 53. Kg3 {[%clk 00:29:52]}
{[%emt 00:01:05]} Rg8+ {[%clk 00:38:31]} {[%emt 00:00:29]} 54. Kxh3 {[%clk
00:30:08]} {[%emt 00:00:14]} Rh8+ {[%clk 00:38:52]} {[%emt 00:00:08]} 55. Kg3
{[%clk 00:30:17]} {[%emt 00:00:21]} Rg8+ {[%clk 00:38:42]} {[%emt 00:00:41]} 56.
Kf3 {[%clk 00:30:44]} {[%emt 00:00:03]} Rc8 {[%clk 00:38:25]} {[%emt 00:00:47]}
57. Rc6 {[%clk 00:29:16]} {[%emt 00:01:58]} Kg1 {[%clk 00:38:36]} {[%emt
00:00:18]} 58. Rc2 {[%clk 00:26:38]} {[%emt 00:03:09]} Kh1 {[%clk 00:38:32]}
{[%emt 00:00:34]} 59. Kg3 {[%clk 00:26:49]} {[%emt 00:00:20]} Rg8+ {[%clk
00:38:38]} {[%emt 00:00:23]} 60. Kh4 {[%clk 00:27:05]} {[%emt 00:00:15]} Kg1
{[%clk 00:37:12]} {[%emt 00:01:55]} 61. c8=Q {[%clk 00:27:10]} {[%emt
00:00:22]} Kh1 {[%clk 00:37:13]} {[%emt 00:00:32]} 62. Rh2+ {[%clk 00:26:43]}
{[%emt 00:00:57]} Kxh2 {[%clk 00:37:18]} {[%emt 00:00:25]} 63. Qxg8 {[%clk
00:26:42]} {[%emt 00:00:31]} Kh1 {[%clk 00:37:39]} {[%emt 00:00:09]} 64. Qa2
{[%clk 00:26:42]} {[%emt 00:00:30]} Kg1 {[%clk 00:37:58]} {[%emt 00:00:11]} 65.
Kg3 {[%clk 00:27:07]} {[%emt 00:00:04]} Kh1 {[%clk 00:38:15]} {[%emt 00:00:13]}
66. Qh2# {[%emt 00:00:12]} 1-0

[Event "Goteborg Open 2024"]
[Site "Goteborgs Schackcentrum, Vegatan 20, Gothenburg, Sweden"]
[Date "2024.08.03"]
[Round "6.15"]
[White "Hammar, Arvid"]
[Black "Lindholm, Marcus"]
[Result "0-1"]
[TimeControl "15 minutes + 5 seconds per move from move one (Round 1 - 4) / 90 minutes + 30 seconds per move from move one (Round 5 - 8)"]
[WhiteFideId "1735977"]
[BlackFideId "1743473"]
[WhiteElo "1653"]
[BlackElo "1851"]

1. e4 {[%clk 01:30:54]} {[%emt 00:00:06]} c5 {[%clk 01:30:50]} {[%emt
00:00:11]} 2. Bc4 {[%clk 01:30:56]} {[%emt 00:00:28]} e6 {[%clk 01:31:04]}
{[%emt 00:00:15]} 3. Nf3 {[%clk 01:31:03]} {[%emt 00:00:23]} d5 {[%clk
01:31:04]} {[%emt 00:00:30]} 4. exd5 {[%clk 01:30:45]} {[%emt 00:00:48]} exd5
{[%clk 01:31:20]} {[%emt 00:00:14]} 5. Bb5+ {[%clk 01:30:42]} {[%emt 00:00:33]}
Bd7 {[%clk 01:31:34]} {[%emt 00:00:16]} 6. Bxd7+ {[%clk 01:30:48]} {[%emt
00:00:24]} Nxd7 {[%clk 01:31:51]} {[%emt 00:00:13]} 7. O-O {[%clk 01:29:49]}
{[%emt 00:01:29]} Bd6 {[%clk 01:31:26]} {[%emt 00:00:54]} 8. Nc3 {[%clk
01:29:41]} {[%emt 00:00:39]} Ne7 {[%clk 01:31:27]} {[%emt 00:00:29]} 9. d4
{[%clk 01:29:36]} {[%emt 00:00:35]} c4 {[%clk 01:29:23]} {[%emt 00:02:34]} 10.
Nb5 {[%clk 01:27:15]} {[%emt 00:02:51]} Bb8 {[%clk 01:29:07]} {[%emt 00:00:46]}
11. Re1 {[%clk 01:25:10]} {[%emt 00:02:35]} O-O {[%clk 01:29:07]} {[%emt
00:00:30]} 12. Bg5 {[%clk 01:24:25]} {[%emt 00:01:16]} f6 {[%clk 01:29:13]}
{[%emt 00:00:23]} 13. Qe2 {[%clk 01:22:27]} {[%emt 00:02:27]} Re8 {[%clk
01:26:52]} {[%emt 00:02:52]} 14. Qe6+ {[%clk 01:19:00]} {[%emt 00:03:57]} Kh8
{[%clk 01:24:43]} {[%emt 00:02:39]} 15. Bh4 {[%clk 01:16:19]} {[%emt 00:03:10]}
a6 {[%clk 01:20:45]} {[%emt 00:04:29]} 16. Nd6 {[%clk 01:14:28]} {[%emt
00:02:21]} Bxd6 {[%clk 01:20:43]} {[%emt 00:00:31]} 17. Qxd6 {[%clk 01:14:45]}
{[%emt 00:00:13]} Rc8 {[%clk 01:20:35]} {[%emt 00:00:38]} 18. Re3 {[%clk
01:06:20]} {[%emt 00:08:55]} Rc6 {[%clk 01:19:14]} {[%emt 00:01:52]} 19. Qf4
{[%clk 01:05:56]} {[%emt 00:00:54]} Ng6 {[%clk 01:19:17]} {[%emt 00:00:27]} 20.
Rxe8+ {[%clk 01:04:37]} {[%emt 00:01:48]} Qxe8 {[%clk 01:19:39]} {[%emt
00:00:09]} 21. Qg3 {[%clk 01:02:57]} {[%emt 00:02:09]} Re6 {[%clk 01:19:43]}
{[%emt 00:00:27]} 22. h3 {[%clk 01:01:29]} {[%emt 00:01:57]} Re4 {[%clk
01:07:31]} {[%emt 00:12:42]} 23. Kh2 {[%clk 00:56:12]} {[%emt 00:05:46]} h6
{[%clk 00:47:38]} {[%emt 00:20:25]} 24. Re1 {[%clk 00:45:52]} {[%emt 00:10:50]}
Rxe1 {[%clk 00:45:49]} {[%emt 00:02:20]} 25. Nxe1 {[%clk 00:46:14]} {[%emt
00:00:08]} Nxh4 {[%clk 00:46:13]} {[%emt 00:00:05]} 26. f4 {[%clk 00:43:37]}
{[%emt 00:03:07]} Nf5 {[%clk 00:45:51]} {[%emt 00:00:53]} 27. Qg4 {[%clk
00:40:45]} {[%emt 00:03:17]} Nxd4 {[%clk 00:45:15]} {[%emt 00:01:09]} 28. f5
{[%clk 00:39:35]} {[%emt 00:01:41]} Qxe1 {[%clk 00:45:31]} {[%emt 00:00:14]} 29.
Qxd4 {[%clk 00:39:54]} {[%emt 00:00:11]} Qe5+ {[%clk 00:45:48]} {[%emt
00:00:13]} 30. Qxe5 {[%clk 00:39:52]} {[%emt 00:00:32]} fxe5 {[%clk 00:46:09]}
{[%emt 00:00:08]} 31. g4 {[%clk 00:39:51]} {[%emt 00:00:32]} Kg8 {[%clk
00:46:28]} {[%emt 00:00:11]} 32. Kg3 {[%clk 00:39:49]} {[%emt 00:00:33]} Kf7
{[%clk 00:46:38]} {[%emt 00:00:19]} 33. Kf3 {[%clk 00:40:01]} {[%emt 00:00:18]}
Nc5 {[%clk 00:46:54]} {[%emt 00:00:14]} 34. b4 {[%clk 00:40:00]} {[%emt
00:00:32]} Ne4 {[%clk 00:46:55]} {[%emt 00:00:28]} 35. a4 {[%clk 00:40:08]}
{[%emt 00:00:23]} Nc3 {[%clk 00:47:14]} {[%emt 00:00:10]} 36. a5 {[%clk
00:40:13]} {[%emt 00:00:25]} Na2 {[%clk 00:47:39]} {[%emt 00:00:05]} 37. Ke3
{[%clk 00:39:58]} {[%emt 00:00:45]} Nxb4 {[%clk 00:47:57]} {[%emt 00:00:13]} 38.
Kd2 {[%clk 00:40:05]} {[%emt 00:00:22]} Nc6 {[%clk 00:48:18]} {[%emt 00:00:09]}
39. Kc3 {[%clk 00:40:17]} {[%emt 00:00:17]} Nxa5 {[%clk 00:48:36]} {[%emt
00:00:13]} 40. Kb4 {[%clk 00:40:34]} {[%emt 00:00:13]} e4 {[%clk 00:48:48]}
{[%emt 00:00:17]} 41. Kc3 {[%clk 00:40:50]} {[%emt 00:00:15]} e3 {[%clk
00:48:56]} {[%emt 00:00:21]} 42. h4 {[%clk 00:40:58]} {[%emt 00:00:23]} d4+
{[%clk 00:49:19]} {[%emt 00:00:07]} 43. Kxd4 {[%emt 00:00:24]} 0-1

[Event "Goteborg Open 2024"]
[Site "Goteborgs Schackcentrum, Vegatan 20, Gothenburg, Sweden"]
[Date "2024.08.03"]
[Round "6.16"]
[White "Gallardo, Guillermo"]
[Black "Israelsson, Lukas"]
[Result "1-0"]
[TimeControl "15 minutes + 5 seconds per move from move one (Round 1 - 4) / 90 minutes + 30 seconds per move from move one (Round 5 - 8)"]
[WhiteFideId "1773488"]
[BlackFideId "1784749"]
[WhiteElo "1822"]
[BlackElo "1615"]

1. Nf3 {[%clk 01:30:55]} {[%emt 00:00:05]} d5 {[%clk 01:30:54]} {[%emt
00:00:06]} 2. d4 {[%clk 01:31:17]} {[%emt 00:00:08]} Nf6 {[%clk 01:31:12]}
{[%emt 00:00:12]} 3. Bg5 {[%clk 01:31:24]} {[%emt 00:00:23]} Ne4 {[%clk
01:31:27]} {[%emt 00:00:15]} 4. Bh4 {[%clk 01:31:24]} {[%emt 00:00:31]} c5
{[%clk 01:31:37]} {[%emt 00:00:20]} 5. e3 {[%clk 01:31:27]} {[%emt 00:00:25]}
Qb6 {[%clk 01:31:23]} {[%emt 00:00:45]} 6. Nc3 {[%clk 01:26:52]} {[%emt
00:05:05]} Nxc3 {[%clk 01:27:06]} {[%emt 00:04:47]} 7. bxc3 {[%clk 01:26:59]}
{[%emt 00:00:23]} Bg4 {[%clk 01:24:54]} {[%emt 00:02:40]} 8. Be2 {[%clk
01:19:53]} {[%emt 00:07:37]} e6 {[%clk 01:23:57]} {[%emt 00:01:27]} 9. Rb1
{[%clk 01:14:19]} {[%emt 00:06:04]} Qa5 {[%clk 01:19:13]} {[%emt 00:05:15]} 10.
Rxb7 {[%clk 01:06:50]} {[%emt 00:07:59]} c4 {[%clk 01:18:28]} {[%emt 00:01:14]}
11. O-O {[%clk 01:01:57]} {[%emt 00:05:23]} Bxf3 {[%clk 01:17:22]} {[%emt
00:01:37]} 12. Bxf3 {[%clk 00:59:18]} {[%emt 00:03:09]} Bd6 {[%clk 01:17:02]}
{[%emt 00:00:47]} 13. e4 {[%clk 00:53:40]} {[%emt 00:06:11]} dxe4 {[%clk
01:14:10]} {[%emt 00:03:21]} 14. Bxe4 {[%clk 00:51:46]} {[%emt 00:02:25]} Nd7
{[%clk 01:09:02]} {[%emt 00:05:36]} 15. Bc6 {[%clk 00:45:28]} {[%emt 00:06:50]}
g5 {[%clk 00:58:40]} {[%emt 00:10:51]} 16. Rxd7 {[%clk 00:39:06]} {[%emt
00:06:52]} Qb6 {[%clk 00:57:40]} {[%emt 00:01:31]} 17. Rxd6+ {[%clk 00:38:44]}
{[%emt 00:00:51]} Ke7 {[%clk 00:58:01]} {[%emt 00:00:09]} 18. Rd7+ {[%clk
00:37:29]} {[%emt 00:01:46]} Ke8 {[%clk 00:58:05]} {[%emt 00:00:23]} 19. Qf3
{[%clk 00:35:11]} 1-0

[Event "Goteborg Open 2024"]
[Site "Goteborgs Schackcentrum, Vegatan 20, Gothenburg, Sweden"]
[Date "2024.08.03"]
[Round "6.17"]
[White "Eklund, Rickard"]
[Black "Lifmark, Kaspar"]
[Result "0-1"]
[TimeControl "15 minutes + 5 seconds per move from move one (Round 1 - 4) / 90 minutes + 30 seconds per move from move one (Round 5 - 8)"]
[WhiteFideId "1789040"]
[BlackFideId "1742396"]
[WhiteElo "1595"]
[BlackElo "1672"]

1. e4 {[%clk 01:30:44]} {[%emt 00:00:15]} d6 {[%clk 01:30:58]} {[%emt
00:00:04]} 2. d4 {[%clk 01:30:03]} {[%emt 00:01:11]} Nf6 {[%clk 01:31:23]}
{[%emt 00:00:05]} 3. Bd3 {[%clk 01:27:22]} {[%emt 00:03:10]} g6 {[%clk
01:31:41]} {[%emt 00:00:12]} 4. Bg5 {[%clk 01:25:11]} {[%emt 00:02:40]} Bg7
{[%clk 01:32:05]} {[%emt 00:00:06]} 5. Ne2 {[%clk 01:24:29]} {[%emt 00:01:12]}
O-O {[%clk 01:32:10]} {[%emt 00:00:26]} 6. O-O {[%clk 01:23:17]} {[%emt
00:01:06]} Nbd7 {[%clk 01:31:52]} {[%emt 00:01:24]} 7. c4 {[%clk 01:22:40]}
{[%emt 00:01:01]} c5 {[%clk 01:31:53]} {[%emt 00:00:36]} 8. Nbc3 {[%clk
01:20:14]} {[%emt 00:02:55]} cxd4 {[%clk 01:29:06]} {[%emt 00:03:17]} 9. Nxd4
{[%clk 01:20:17]} {[%emt 00:00:26]} Nc5 {[%clk 01:29:17]} {[%emt 00:00:20]} 10.
Bc2 {[%clk 01:18:25]} {[%emt 00:02:22]} Ng4 {[%clk 01:28:28]} {[%emt 00:01:19]}
11. h3 {[%clk 01:17:33]} {[%emt 00:01:21]} Ne5 {[%clk 01:28:48]} {[%emt
00:00:11]} 12. b3 {[%clk 01:14:50]} {[%emt 00:03:14]} Nc6 {[%clk 01:22:57]}
{[%emt 00:06:21]} 13. Nxc6 {[%clk 01:12:51]} {[%emt 00:02:28]} bxc6 {[%clk
01:23:20]} {[%emt 00:00:07]} 14. Qf3 {[%clk 01:09:57]} {[%emt 00:03:24]} f5
{[%clk 01:15:02]} {[%emt 00:08:48]} 15. Rad1 {[%clk 01:05:59]} {[%emt
00:04:28]} fxe4 {[%clk 01:11:37]} {[%emt 00:03:55]} 16. Qe3 {[%clk 01:06:06]}
{[%emt 00:00:22]} Qc7 {[%clk 01:06:52]} {[%emt 00:05:16]} 17. b4 {[%clk
00:58:23]} {[%emt 00:08:13]} Ne6 {[%clk 01:04:40]} {[%emt 00:02:42]} 18. Bh6
{[%clk 00:51:57]} {[%emt 00:06:55]} Qb6 {[%clk 00:55:09]} {[%emt 00:10:02]} 19.
Qxb6 {[%clk 00:49:56]} {[%emt 00:02:30]} axb6 {[%clk 00:54:33]} {[%emt
00:01:07]} 20. Bxg7 {[%clk 00:49:41]} {[%emt 00:00:45]} Kxg7 {[%clk 00:54:23]}
{[%emt 00:00:41]} 21. Bxe4 {[%clk 00:48:42]} {[%emt 00:01:27]} Ra3 {[%clk
00:51:55]} {[%emt 00:02:58]} 22. Rc1 {[%clk 00:46:18]} {[%emt 00:02:54]} Nd4
{[%clk 00:50:17]} {[%emt 00:02:09]} 23. Kh2 {[%clk 00:42:06]} {[%emt 00:04:41]}
Be6 {[%clk 00:48:21]} {[%emt 00:02:27]} 24. Rfd1 {[%clk 00:38:52]} {[%emt
00:03:42]} c5 {[%clk 00:47:33]} {[%emt 00:01:20]} 25. bxc5 {[%clk 00:38:07]}
{[%emt 00:01:14]} bxc5 {[%clk 00:47:40]} {[%emt 00:00:24]} 26. f3 {[%clk
00:31:41]} {[%emt 00:06:56]} Bxc4 {[%clk 00:45:41]} {[%emt 00:02:30]} 27. Nb1
{[%clk 00:31:11]} {[%emt 00:00:58]} Ra4 {[%clk 00:43:41]} {[%emt 00:02:31]} 28.
Nc3 {[%clk 00:30:36]} {[%emt 00:01:05]} Ra7 {[%clk 00:41:01]} {[%emt 00:03:10]}
29. a4 {[%clk 00:30:11]} {[%emt 00:00:55]} Ne2 {[%clk 00:39:19]} {[%emt
00:02:12]} 30. Nxe2 {[%clk 00:29:09]} {[%emt 00:01:32]} Bxe2 {[%clk 00:39:44]}
{[%emt 00:00:05]} 31. Rd2 {[%clk 00:29:17]} {[%emt 00:00:21]} Ba6 {[%clk
00:40:07]} {[%emt 00:00:07]} 32. Rb2 {[%clk 00:25:09]} {[%emt 00:04:38]} Bc8
{[%clk 00:36:54]} {[%emt 00:03:43]} 33. Bc6 {[%clk 00:22:14]} {[%emt 00:03:25]}
Bd7 {[%clk 00:33:55]} {[%emt 00:03:29]} 34. Bxd7 {[%clk 00:18:13]} {[%emt
00:04:31]} Rxd7 {[%clk 00:34:19]} {[%emt 00:00:07]} 35. a5 {[%clk 00:18:15]}
{[%emt 00:00:28]} Ra7 {[%clk 00:34:27]} {[%emt 00:00:21]} 36. Rb5 {[%clk
00:18:11]} {[%emt 00:00:34]} Rfa8 {[%clk 00:29:25]} {[%emt 00:05:33]} 37. Re1
{[%clk 00:17:48]} {[%emt 00:00:52]} Kf6 {[%clk 00:28:41]} {[%emt 00:01:14]} 38.
a6 {[%clk 00:15:14]} {[%emt 00:03:04]} e5 {[%clk 00:26:16]} {[%emt 00:02:55]}
39. Kg3 {[%clk 00:10:40]} {[%emt 00:05:04]} Rxa6 {[%clk 00:26:04]} {[%emt
00:00:43]} 40. Rb7 {[%clk 00:10:47]} {[%emt 00:00:23]} R8a7 {[%clk 00:25:17]}
{[%emt 00:01:18]} 41. Rb8 {[%clk 00:10:35]} {[%emt 00:00:41]} Rc6 {[%clk
00:24:39]} {[%emt 00:01:08]} 42. Rc1 {[%clk 00:08:28]} {[%emt 00:02:36]} c4
{[%clk 00:24:16]} {[%emt 00:00:54]} 43. Rb4 {[%emt 00:00:20]} d5 {[%emt
00:00:24]} 44. Kf2 {[%clk 00:06:45]} {[%emt 00:01:28]} Ra2+ {[%clk 00:23:28]}
{[%emt 00:01:19]} 45. Kg3 {[%clk 00:06:52]} {[%emt 00:00:23]} c3 {[%clk
00:23:25]} {[%emt 00:00:33]} 46. Rb7 {[%clk 00:07:08]} {[%emt 00:00:14]} h5
{[%clk 00:22:26]} {[%emt 00:01:28]} 0-1